fUSD/lending_fUSD_20240105
["ID","MTS","AMOUNT","RATE_DAILY","PERIOD"]
[310243669,1704414672202,-500.0,0.00034794,2]
[310243670,1704414672211,-500.0,0.00034794,2]
[310243671,1704414672221,-628.26,0.00034794,2]
[310243672,1704414672231,-500.0,0.00034794,2]
[310243673,1704414672240,-888.28,0.00034794,2]
[310243674,1704414672250,-500.0,0.00034794,2]
[310243675,1704414672259,-500.0,0.00034794,2]
[310243676,1704414672269,-500.0,0.00034794,2]
[310243677,1704414672278,-500.0,0.00034794,2]
[310243678,1704414672288,-614.60540397,0.00034794,2]
[310243679,1704414672298,-500.0,0.00034794,2]
[310243680,1704414672307,-500.0,0.00034794,2]
[310243681,1704414672317,-351.01297717,0.00034794,2]
[310243682,1704414672327,-500.0,0.00034794,2]
[310243683,1704414672336,-723.54,0.00034794,2]
[310243684,1704414672346,-500.0,0.00034794,2]
[310243685,1704414672356,-500.0,0.00034794,2]
[310243686,1704414672365,-500.0,0.00034794,2]
[310243687,1704414672376,-500.0,0.00034794,2]
[310243688,1704414672386,-500.0,0.00034794,2]
[310243689,1704414672396,-500.0,0.00034794,2]
[310243690,1704414672405,-500.0,0.00034794,2]
[310243691,1704414672416,-500.0,0.00034794,2]
[310243692,1704414672425,-608.52,0.00034794,2]
[310243693,1704414672435,-500.0,0.00034794,2]
[310243694,1704414672445,-500.0,0.00034794,2]
[310243695,1704414672455,-500.0,0.00034794,2]
[310243696,1704414672464,-500.0,0.00034794,2]
[310243697,1704414672473,-500.0,0.00034794,2]
[310243698,1704414672483,-500.0,0.00034794,2]
[310243699,1704414672493,-500.0,0.00034794,2]
[310243700,1704414672503,-500.0,0.00034794,2]
[310243701,1704414672513,-500.0,0.00034794,2]
[310243702,1704414672522,-500.0,0.00034794,2]
[310243703,1704414672531,-886.13,0.00034794,2]
[310243704,1704414672541,-501.68,0.00034794,2]
[310243705,1704414672550,-500.0,0.00034794,2]
[310243706,1704414672560,-500.0,0.00034794,2]
[310243707,1704414672569,-500.0,0.00034794,2]
[310243708,1704414672579,-500.0,0.00034794,2]
[310243709,1704414672588,-500.0,0.00034794,2]
[310243710,1704414672598,-500.0,0.00034794,2]
[310243711,1704414672608,-500.0,0.00034794,2]
[310243712,1704414672619,-1517.74,0.00034794,2]
[310243713,1704414672630,-584.65,0.00034794,2]
[310243714,1704414672639,-500.0,0.00034794,2]
[310243715,1704414672648,-500.0,0.00034794,2]
[310243716,1704414672658,-939.87,0.00034794,2]
[310243717,1704414672667,-500.0,0.00034794,2]
[310243718,1704414672677,-2022.65,0.00034794,2]
[310243719,1704414672687,-647.31,0.00034794,2]
[310243720,1704414672696,-919.18,0.00034794,2]
[310243721,1704414672706,-500.0,0.00034794,2]
[310243722,1704414672715,-500.0,0.00034794,2]
[310243723,1704414672724,-808.57,0.00034794,2]
[310243724,1704414672734,-500.0,0.00034794,2]
[310243725,1704414672744,-500.0,0.00034794,2]
[310243726,1704414672754,-379.2,0.00034794,2]
[310243727,1704414672767,-500.0,0.00034794,2]
[310243728,1704414672777,-1527.38,0.00034794,2]
[310243729,1704414672785,-695.92,0.00034794,2]
[310243730,1704414672795,-970.8,0.00034794,2]
[310243731,1704414672804,-500.0,0.00034794,2]
[310243732,1704414672813,-500.0,0.00034794,2]
[310243733,1704414672822,-500.0,0.00034794,2]
[310243734,1704414672832,-500.0,0.00034794,2]
[310243735,1704414672842,-893.29,0.00034794,2]
[310243736,1704414672851,-622.91022122,0.00034794,2]
[310243737,1704414672860,-6653.01,0.00034794,2]
[310243738,1704414672870,-500.0,0.00034794,2]
[310243739,1704414672879,-175.61,0.00034794,2]
[310243740,1704414672889,-333.34,0.00034794,2]
[310243741,1704414672898,-500.0,0.00034794,2]
[310243742,1704414672908,-500.0,0.00034794,2]
[310243743,1704414672917,-588.0,0.00034794,2]
[310243744,1704414672927,-200.47,0.00034794,2]
[310243745,1704414672936,-1177.25,0.00034794,2]
[310243746,1704414672946,-500.0,0.00034794,2]
[310243747,1704414672955,-500.0,0.00034794,2]
[310243748,1704414672965,-1817.42,0.00034794,2]
[310243749,1704414672974,-500.0,0.00034794,2]
[310243750,1704414672983,-500.0,0.00034794,2]
[310243751,1704414672992,-1325.73,0.00034794,2]
[310243752,1704414673001,-638.74,0.00034794,2]
[310243753,1704414673010,-1358.51,0.00034794,2]
[310243754,1704414673020,-1081.26,0.00034794,2]
[310243755,1704414673029,-500.0,0.00034794,2]
[310243756,1704414673039,-472.26,0.00034794,2]
[310243757,1704414673048,-556.12,0.00034794,2]
[310243758,1704414673057,-500.0,0.00034794,2]
[310243759,1704414673067,-1314.11,0.00034794,2]
[310243760,1704414673077,-293.88,0.00034794,2]
[310243761,1704414673087,-500.0,0.00034794,2]
[310243762,1704414673096,-338.66,0.00034794,2]
[310243763,1704414673106,-4577.94,0.00034794,2]
[310243764,1704414673115,-21013.31,0.00034794,2]
[310243765,1704414673124,-500.0,0.00034794,2]
[310243766,1704414673135,-32339.89,0.00034794,2]
[310243767,1704414673144,-2096.26,0.00034794,2]
[310243768,1704414673154,-500.0,0.00034794,2]
[310243769,1704414673163,-612.35,0.00034794,2]
[310243770,1704414673173,-980.38,0.00034794,2]
[310243771,1704414673183,-509.98,0.00034794,2]
[310243772,1704414673192,-473.08,0.00034794,2]
[310243773,1704414673201,-970.25,0.00034794,2]
[310243774,1704414673210,-500.0,0.00034794,2]
[310243775,1704414673220,-791.58,0.00034897,2]
[310243776,1704414673230,-151.12513902,0.000349,2]
[310243777,1704414673239,-977.70737428,0.000349,2]
[310243778,1704414673249,-977.7073741,0.000349,2]
[310243779,1704414673258,-977.7073741,0.000349,2]
[310243780,1704414673268,-977.7073741,0.000349,2]
[310243781,1704414673277,-977.7073741,0.000349,2]
[310243782,1704414673287,-977.7073741,0.000349,2]
[310243783,1704414673296,-977.7073741,0.000349,2]
[310243784,1704414673306,-977.7073741,0.000349,2]
[310243785,1704414673316,-1868.97,0.00034997,2]
[310243786,1704414673325,-400.12,0.00034997,2]
[310243787,1704414673335,-18957.59309852,0.00035,4]
[310243788,1704414673345,-446.78845482,0.00035,4]
[310243789,1704414673354,-617.90544107,0.00035,4]
[310243790,1704414673363,-450.0,0.00035,3]
[310243791,1704414673372,-624.04860101,0.00035,2]
[310243792,1704414673511,-870.50436255,0.00035,2]
[310243793,1704414673520,-870.50436255,0.00035,2]
[310243794,1704414673529,-20000.0,0.00035,3]
[310243795,1704414673538,-624.04860101,0.00035068,2]
[310243796,1704414673548,-500.0,0.00035068,2]
[310243797,1704414673557,-500.0,0.00035068,2]
[310243798,1704414673566,-500.0,0.00035068,2]
[310243799,1704414673575,-500.0,0.00035068,2]
[310243800,1704414673584,-500.0,0.00035068,2]
[310243801,1704414673594,-500.0,0.00035068,2]
[310243802,1704414673603,-500.0,0.00035068,2]
[310243803,1704414673612,-500.0,0.00035068,2]
[310243804,1704414673620,-500.0,0.00035068,2]
[310243805,1704414673631,-500.0,0.00035068,2]
[310243806,1704414673640,-500.0,0.00035068,2]
[310243807,1704414673649,-500.0,0.00035068,2]
[310243808,1704414673658,-512.12,0.00035068,2]
[310243809,1704414673666,-500.0,0.00035068,2]
[310243810,1704414673675,-500.0,0.00035068,2]
[310243811,1704414673684,-500.0,0.00035068,2]
[310243812,1704414673693,-544.31,0.00035068,2]
[310243813,1704414673702,-500.0,0.00035068,2]
[310243814,1704414673711,-500.0,0.00035068,2]
[310243815,1704414673720,-500.0,0.00035068,2]
[310243816,1704414673729,-1124.47,0.00035068,2]
[310243817,1704414673738,-500.0,0.00035068,2]
[310243818,1704414673747,-192.12,0.00035068,2]
[310243819,1704414673758,-500.0,0.00035068,2]
[310243820,1704414673768,-500.0,0.00035068,2]
[310243821,1704414673778,-629.03,0.00035068,2]
[310243822,1704414673787,-500.0,0.00035068,2]
[310243823,1704414673797,-500.0,0.00035068,2]
[310243824,1704414673806,-404.58,0.00035068,2]
[310243825,1704414673815,-473.35449516,0.00035068,2]
[310243826,1704414673824,-500.0,0.00035068,2]
[310243827,1704414673833,-636.84,0.00035068,2]
[310243828,1704414673842,-500.0,0.00035068,2]
[310243829,1704414673853,-678.19,0.00035068,2]
[310243830,1704414673862,-500.0,0.00035068,2]
[310243831,1704414673871,-500.0,0.00035068,2]
[310243832,1704414673882,-500.0,0.00035068,2]
[310243833,1704414673892,-500.0,0.00035068,2]
[310243834,1704414673901,-500.0,0.00035068,2]
[310243835,1704414673910,-500.0,0.00035068,2]
[310243836,1704414673919,-500.0,0.00035068,2]
[310243837,1704414673929,-500.0,0.00035068,2]
[310243838,1704414673939,-500.0,0.00035068,2]
[310243839,1704414673948,-500.0,0.00035068,2]
[310243840,1704414673957,-500.0,0.00035068,2]
[310243841,1704414673967,-500.0,0.00035068,2]
[310243842,1704414673976,-500.0,0.00035068,2]
[310243843,1704414673986,-750.66,0.00035068,2]
[310243844,1704414673995,-500.0,0.00035068,2]
[310243845,1704414674005,-395.34,0.00035068,2]
[310243846,1704414674014,-500.0,0.00035068,2]
[310243847,1704414674023,-500.0,0.00035068,2]
[310243848,1704414674034,-500.0,0.00035068,2]
[310243849,1704414674043,-500.0,0.00035068,2]
[310243850,1704414674053,-500.0,0.00035068,2]
[310243851,1704414674063,-888.28,0.00035068,2]
[310243852,1704414674072,-500.0,0.00035068,2]
[310243853,1704414674081,-500.0,0.00035068,2]
[310243854,1704414674091,-500.0,0.00035068,2]
[310243855,1704414674101,-500.0,0.00035068,2]
[310243856,1704414674111,-171.06266171,0.00035068,2]
[310243857,1704414674120,-500.0,0.00035068,2]
[310243858,1704414674130,-556.86,0.00035068,2]
[310243859,1704414674140,-723.54,0.00035068,2]
[310243860,1704414674150,-500.0,0.00035068,2]
[310243861,1704414674159,-500.0,0.00035068,2]
[310243862,1704414674169,-500.0,0.00035068,2]
[310243863,1704414674178,-500.0,0.00035068,2]
[310243864,1704414674188,-500.0,0.00035068,2]
[310243865,1704414674197,-500.0,0.00035068,2]
[310243866,1704414674207,-500.0,0.00035068,2]
[310243867,1704414674216,-500.0,0.00035068,2]
[310243868,1704414674226,-608.52,0.00035068,2]
[310243869,1704414674235,-500.0,0.00035068,2]
[310243870,1704414674245,-500.0,0.00035068,2]
[310243871,1704414674255,-500.0,0.00035068,2]
[310243872,1704414674264,-500.0,0.00035068,2]
[310243873,1704414674274,-500.0,0.00035068,2]
[310243874,1704414674284,-500.0,0.00035068,2]
[310243875,1704414674294,-500.0,0.00035068,2]
[310243876,1704414674303,-500.0,0.00035068,2]
[310243877,1704414674313,-500.0,0.00035068,2]
[310243878,1704414674323,-500.0,0.00035068,2]
[310243879,1704414674331,-886.13,0.00035068,2]
[310243880,1704414674342,-501.68,0.00035068,2]
[310243881,1704414674352,-500.0,0.00035068,2]
[310243882,1704414674365,-500.0,0.00035068,2]
[310243883,1704414674375,-500.0,0.00035068,2]
[310243884,1704414674386,-251.64,0.00035068,2]
[310243885,1704414674397,-500.0,0.00035068,2]
[310243886,1704414674407,-500.0,0.00035068,2]
[310243887,1704414674416,-584.65,0.00035068,2]
[310243888,1704414674426,-1517.74,0.00035068,2]
[310243889,1704414674436,-500.0,0.00035068,2]
[310243890,1704414674446,-500.0,0.00035068,2]
[310243891,1704414674455,-939.87,0.00035068,2]
[310243892,1704414674466,-500.0,0.00035068,2]
[310243893,1704414674475,-2022.65,0.00035068,2]
[310243894,1704414674485,-647.31,0.00035068,2]
[310243895,1704414674494,-919.18,0.00035068,2]
[310243896,1704414674503,-500.0,0.00035068,2]
[310243897,1704414674512,-500.0,0.00035068,2]
[310243898,1704414674521,-808.57,0.00035068,2]
[310243899,1704414674531,-500.0,0.00035068,2]
[310243900,1704414674540,-500.0,0.00035068,2]
[310243901,1704414674551,-189.3,0.00035068,2]
[310243902,1704414674560,-1527.38,0.00035068,2]
[310243903,1704414674569,-695.92,0.00035068,2]
[310243904,1704414674580,-970.8,0.00035068,2]
[310243905,1704414674589,-500.0,0.00035068,2]
[310243906,1704414674599,-500.0,0.00035068,2]
[310243907,1704414674609,-500.0,0.00035068,2]
[310243908,1704414674618,-500.0,0.00035068,2]
[310243909,1704414674629,-893.29,0.00035068,2]
[310243910,1704414674639,-6653.01,0.00035068,2]
[310243911,1704414674647,-500.0,0.00035068,2]
[310243912,1704414674657,-500.0,0.00035068,2]
[310243913,1704414674666,-500.0,0.00035068,2]
[310243914,1704414674676,-193.86,0.00035068,2]
[310243915,1704414674685,-1177.25,0.00035068,2]
[310243916,1704414674694,-500.0,0.00035068,2]
[310243917,1704414674705,-500.0,0.00035068,2]
[310243918,1704414674714,-1817.42,0.00035068,2]
[310243919,1704414674724,-500.0,0.00035068,2]
[310243920,1704414674734,-380.8,0.00035068,2]
[310243921,1704414674743,-1325.73,0.00035068,2]
[310243922,1704414674753,-638.74,0.00035068,2]
[310243923,1704414674766,-1358.51,0.00035068,2]
[310243924,1704414674776,-500.0,0.00035068,2]
[310243925,1704414674786,-1081.26,0.00035068,2]
[310243926,1704414674795,-556.12,0.00035068,2]
[310243927,1704414674805,-500.0,0.00035068,2]
[310243928,1704414674814,-1314.11,0.00035068,2]
[310243929,1704414674824,-500.0,0.00035068,2]
[310243930,1704414674834,-4577.94,0.00035068,2]
[310243931,1704414674845,-21013.31,0.00035068,2]
[310243932,1704414674855,-500.0,0.00035068,2]
[310243933,1704414674864,-32339.89,0.00035068,2]
[310243934,1704414674874,-2096.26,0.00035068,2]
[310243935,1704414674886,-495.7228815,0.00035068,2]
[310243936,1704414674896,-612.35,0.00035068,2]
[310243937,1704414674905,-980.38,0.00035068,2]
[310243938,1704414674914,-509.98,0.00035068,2]
[310243939,1704414674924,-970.25,0.00035068,2]
[310243940,1704414674933,-500.0,0.00035068,2]
[310243941,1704414674942,-151.0,0.00035195,4]
[310243942,1704414674952,-1000.0,0.00035235,2]
[310243943,1704414674961,-1000.0,0.00035235,2]
[310243944,1704414674971,-1779.4466812,0.00035318,2]
[310243945,1704414674981,-160.492194,0.00035325,2]
[310243946,1704414674990,-159.257693,0.00035325,2]
[310243947,1704414674999,-210.0,0.00035332,18]
[310243948,1704414675009,-500.0,0.00035342,2]
[310243949,1704414675018,-500.0,0.00035342,2]
[310243950,1704414675027,-500.0,0.00035342,2]
[310243951,1704414675037,-500.0,0.00035342,2]
[310243952,1704414675046,-500.0,0.00035342,2]
[310243953,1704414675055,-500.0,0.00035342,2]
[310243954,1704414675065,-500.0,0.00035342,2]
[310243955,1704414675074,-500.0,0.00035342,2]
[310243956,1704414675084,-500.0,0.00035342,2]
[310243957,1704414675093,-500.0,0.00035342,2]
[310243958,1704414675103,-500.0,0.00035342,2]
[310243959,1704414675112,-500.0,0.00035342,2]
[310243960,1704414675121,-500.0,0.00035342,2]
[310243961,1704414675132,-500.0,0.00035342,2]
[310243962,1704414675141,-500.0,0.00035342,2]
[310243963,1704414675150,-500.0,0.00035342,2]
[310243964,1704414675159,-500.0,0.00035342,2]
[310243965,1704414675168,-500.0,0.00035342,2]
[310243966,1704414675176,-500.0,0.00035342,2]
[310243967,1704414675185,-500.0,0.00035342,2]
[310243968,1704414675194,-500.0,0.00035342,2]
[310243969,1704414675203,-500.0,0.00035342,2]
[310243970,1704414675212,-500.0,0.00035342,2]
[310243971,1704414675222,-500.0,0.00035342,2]
[310243972,1704414675231,-500.0,0.00035342,2]
[310243973,1704414675240,-252.73543081,0.00035342,2]
[310243974,1704414675249,-500.0,0.00035342,2]
[310243975,1704414675259,-500.0,0.00035342,2]
[310243976,1704414675268,-512.12,0.00035342,2]
[310243977,1704414675278,-500.0,0.00035342,2]
[310243978,1704414675288,-500.0,0.00035342,2]
[310243979,1704414675297,-544.31,0.00035342,2]
[310243980,1704414675306,-500.0,0.00035342,2]
[310243981,1704414675315,-500.0,0.00035342,2]
[310243982,1704414675325,-500.0,0.00035342,2]
[310243983,1704414675362,-1124.47,0.00035342,2]
[310243984,1704414675371,-500.0,0.00035342,2]
[310243985,1704414675382,-500.0,0.00035342,2]
[310243986,1704414675392,-334.22,0.00035342,2]
[310243987,1704414675401,-369.3257138,0.00035342,2]
[310243988,1704414675410,-500.0,0.00035342,2]
[310243989,1704414675420,-500.0,0.00035342,2]
[310243990,1704414675429,-500.0,0.00035342,2]
[310243991,1704414675438,-678.19,0.00035342,2]
[310243992,1704414675447,-500.0,0.00035342,2]
[310243993,1704414675457,-459.87186101,0.00035342,2]
[310243994,1704414675466,-500.0,0.00035342,2]
[310243995,1704414675476,-500.0,0.00035342,2]
[310243996,1704414675485,-500.0,0.00035342,2]
[310243997,1704414675494,-500.0,0.00035342,2]
[310243998,1704414675503,-500.0,0.00035342,2]
[310243999,1704414675512,-500.0,0.00035342,2]
[310244000,1704414675521,-500.0,0.00035342,2]
[310244001,1704414675529,-500.0,0.00035342,2]
[310244002,1704414675538,-500.0,0.00035342,2]
[310244003,1704414675546,-500.0,0.00035342,2]
[310244004,1704414675555,-500.0,0.00035342,2]
[310244005,1704414675564,-750.66,0.00035342,2]
[310244006,1704414675573,-500.0,0.00035342,2]
[310244007,1704414675582,-500.0,0.00035342,2]
[310244008,1704414675591,-500.0,0.00035342,2]
[310244009,1704414675600,-500.0,0.00035342,2]
[310244010,1704414675609,-500.0,0.00035342,2]
[310244011,1704414675618,-500.0,0.00035342,2]
[310244012,1704414675629,-888.28,0.00035342,2]
[310244013,1704414675638,-500.0,0.00035342,2]
[310244014,1704414675647,-500.0,0.00035342,2]
[310244015,1704414675657,-500.0,0.00035342,2]
[310244016,1704414675667,-500.0,0.00035342,2]
[310244017,1704414675676,-500.0,0.00035342,2]
[310244018,1704414675686,-723.54,0.00035342,2]
[310244019,1704414675696,-500.0,0.00035342,2]
[310244020,1704414675705,-500.0,0.00035342,2]
[310244021,1704414675715,-500.0,0.00035342,2]
[310244022,1704414675725,-500.0,0.00035342,2]
[310244023,1704414675735,-500.0,0.00035342,2]
[310244024,1704414675745,-500.0,0.00035342,2]
[310244025,1704414675755,-608.52,0.00035342,2]
[310244026,1704414675768,-500.0,0.00035342,2]
[310244027,1704414675778,-500.0,0.00035342,2]
[310244028,1704414675787,-500.0,0.00035342,2]
[310244029,1704414675796,-500.0,0.00035342,2]
[310244030,1704414675806,-500.0,0.00035342,2]
[310244031,1704414675815,-500.0,0.00035342,2]
[310244032,1704414675825,-500.0,0.00035342,2]
[310244033,1704414675834,-500.0,0.00035342,2]
[310244034,1704414675845,-500.0,0.00035342,2]
[310244035,1704414675855,-500.0,0.00035342,2]
[310244036,1704414675864,-886.13,0.00035342,2]
[310244037,1704414675874,-501.68,0.00035342,2]
[310244038,1704414675884,-500.0,0.00035342,2]
[310244039,1704414675894,-500.0,0.00035342,2]
[310244040,1704414675903,-500.0,0.00035342,2]
[310244041,1704414675913,-500.0,0.00035342,2]
[310244042,1704414675925,-500.0,0.00035342,2]
[310244043,1704414675934,-584.65,0.00035342,2]
[310244044,1704414675944,-1517.74,0.00035342,2]
[310244045,1704414675953,-500.0,0.00035342,2]
[310244046,1704414675963,-500.0,0.00035342,2]
[310244047,1704414675973,-939.87,0.00035342,2]
[310244048,1704414675982,-500.0,0.00035342,2]
[310244049,1704414675991,-2022.65,0.00035342,2]
[310244050,1704414676000,-647.31,0.00035342,2]
[310244051,1704414676010,-919.18,0.00035342,2]
[310244052,1704414676019,-500.0,0.00035342,2]
[310244053,1704414676028,-500.0,0.00035342,2]
[310244054,1704414676037,-808.57,0.00035342,2]
[310244055,1704414676047,-500.0,0.00035342,2]
[310244056,1704414676056,-182.56,0.00035342,2]
[310244057,1704414676067,-695.92,0.00035342,2]
[310244058,1704414676076,-1527.38,0.00035342,2]
[310244059,1704414676086,-970.8,0.00035342,2]
[310244060,1704414676096,-500.0,0.00035342,2]
[310244061,1704414676105,-500.0,0.00035342,2]
[310244062,1704414676115,-500.0,0.00035342,2]
[310244063,1704414676124,-500.0,0.00035342,2]
[310244064,1704414676135,-893.29,0.00035342,2]
[310244065,1704414676144,-6653.01,0.00035342,2]
[310244066,1704414676153,-500.0,0.00035342,2]
[310244067,1704414676287,-500.0,0.00035342,2]
[310244068,1704414676297,-310.38,0.00035342,2]
[310244069,1704414676307,-1177.25,0.00035342,2]
[310244070,1704414676317,-500.0,0.00035342,2]
[310244071,1704414676326,-500.0,0.00035342,2]
[310244072,1704414676335,-1817.42,0.00035342,2]
[310244073,1704414676345,-500.0,0.00035342,2]
[310244074,1704414676355,-1325.73,0.00035342,2]
[310244075,1704414676364,-638.74,0.00035342,2]
[310244076,1704414676374,-1358.51,0.00035342,2]
[310244077,1704414676384,-500.0,0.00035342,2]
[310244078,1704414676393,-1081.26,0.00035342,2]
[310244079,1704414676403,-556.12,0.00035342,2]
[310244080,1704414676412,-500.0,0.00035342,2]
[310244081,1704414676421,-1314.11,0.00035342,2]
[310244082,1704414676431,-500.0,0.00035342,2]
[310244083,1704414676442,-4577.94,0.00035342,2]
[310244084,1704414676452,-21013.31,0.00035342,2]
[310244085,1704414676462,-500.0,0.00035342,2]
[310244086,1704414676471,-32339.89,0.00035342,2]
[310244087,1704414676481,-2096.26,0.00035342,2]
[310244088,1704414676491,-612.35,0.00035342,2]
[310244089,1704414676500,-509.98,0.00035342,2]
[310244090,1704414676509,-980.38,0.00035342,2]
[310244091,1704414676519,-970.25,0.00035342,2]
[310244092,1704414676530,-500.0,0.00035342,2]
[310244093,1704414676539,-887.0,0.000354,2]
[310244094,1704414676549,-342.0,0.000354,2]
[310244095,1704414676558,-151.765019,0.00035485,14]
[310244096,1704414676568,-977.7073741,0.00035532,2]
[310244097,1704414676576,-152.95511515,0.00035584,2]
[310244098,1704414676586,-167.0,0.00035584,2]
[310244099,1704414676595,-167.0,0.00035584,2]
[310244100,1704414676605,-167.0,0.00035584,2]
[310244101,1704414676614,-167.0,0.00035584,2]
[310244102,1704414676624,-1000.0,0.000356,2]
[310244103,1704414676635,-500.0,0.00035616,2]
[310244104,1704414676644,-500.0,0.00035616,2]
[310244105,1704414676653,-500.0,0.00035616,2]
[310244106,1704414676663,-500.0,0.00035616,2]
[310244107,1704414676672,-448.7,0.00035616,2]
[310244108,1704414676682,-500.0,0.00035616,2]
[310244109,1704414676691,-588.62939559,0.00035616,2]
[310244110,1704414676701,-500.0,0.00035616,2]
[310244111,1704414676710,-512.12,0.00035616,2]
[310244112,1704414676720,-500.0,0.00035616,2]
[310244113,1704414676729,-500.0,0.00035616,2]
[310244114,1704414676738,-544.31,0.00035616,2]
[310244115,1704414676747,-500.0,0.00035616,2]
[310244116,1704414676757,-500.0,0.00035616,2]
[310244117,1704414676767,-500.0,0.00035616,2]
[310244118,1704414676778,-1124.47,0.00035616,2]
[310244119,1704414676787,-500.0,0.00035616,2]
[310244120,1704414676797,-250.13,0.00035616,2]
[310244121,1704414676806,-500.0,0.00035616,2]
[310244122,1704414676816,-500.0,0.00035616,2]
[310244123,1704414676825,-500.0,0.00035616,2]
[310244124,1704414676834,-678.19,0.00035616,2]
[310244125,1704414676843,-500.0,0.00035616,2]
[310244126,1704414676853,-500.0,0.00035616,2]
[310244127,1704414676863,-455.76167875,0.00035616,2]
[310244128,1704414676873,-500.0,0.00035616,2]
[310244129,1704414676882,-500.0,0.00035616,2]
[310244130,1704414676892,-500.0,0.00035616,2]
[310244131,1704414676902,-500.0,0.00035616,2]
[310244132,1704414676911,-324.66,0.00035616,2]
[310244133,1704414676919,-500.0,0.00035616,2]
[310244134,1704414676928,-500.0,0.00035616,2]
[310244135,1704414676938,-500.0,0.00035616,2]
[310244136,1704414676948,-500.0,0.00035616,2]
[310244137,1704414676957,-750.66,0.00035616,2]
[310244138,1704414676966,-500.0,0.00035616,2]
[310244139,1704414676975,-500.0,0.00035616,2]
[310244140,1704414676985,-500.0,0.00035616,2]
[310244141,1704414676994,-500.0,0.00035616,2]
[310244142,1704414677003,-500.0,0.00035616,2]
[310244143,1704414677013,-500.0,0.00035616,2]
[310244144,1704414677023,-888.28,0.00035616,2]
[310244145,1704414677034,-500.0,0.00035616,2]
[310244146,1704414677043,-500.0,0.00035616,2]
[310244147,1704414677053,-500.0,0.00035616,2]
[310244148,1704414677063,-500.0,0.00035616,2]
[310244149,1704414677073,-500.0,0.00035616,2]
[310244150,1704414677083,-723.54,0.00035616,2]
[310244151,1704414677092,-500.0,0.00035616,2]
[310244152,1704414677101,-500.0,0.00035616,2]
[310244153,1704414677111,-500.0,0.00035616,2]
[310244154,1704414677121,-500.0,0.00035616,2]
[310244155,1704414677130,-500.0,0.00035616,2]
[310244156,1704414677140,-500.0,0.00035616,2]
[310244157,1704414677149,-608.52,0.00035616,2]
[310244158,1704414677159,-500.0,0.00035616,2]
[310244159,1704414677169,-500.0,0.00035616,2]
[310244160,1704414677178,-500.0,0.00035616,2]
[310244161,1704414677187,-500.0,0.00035616,2]
[310244162,1704414677197,-500.0,0.00035616,2]
[310244163,1704414677207,-339.49,0.00035616,2]
[310244164,1704414677217,-500.0,0.00035616,2]
[310244165,1704414677226,-500.0,0.00035616,2]
[310244166,1704414677235,-500.0,0.00035616,2]
[310244167,1704414677244,-528.88,0.00035616,2]
[310244168,1704414677254,-886.13,0.00035616,2]